bitfinex-derivatives/quotes_BNBF0:USTF0_20250309
["timestamp","ask_amount","ask_price","bid_price","bid_amount"]
[1741508209969,1.372,584.93,584.45,0.28598322]
[1741508213089,2.044,584.93,584.45,0.28598322]
[1741508216879,2.044,584.93,584.46,0.28597166]
[1741508217082,2.044,584.93,584.45,0.28597166]
[1741508217389,2.044,584.93,584.46,0.2859751]
[1741508217890,2.044,584.93,584.47,0.2859751]
[1741508218196,2.044,584.93,584.48,0.2859751]
[1741508218385,2.044,584.93,584.46,0.2859751]
[1741508218591,2.044,584.93,584.47,0.2859751]
[1741508218784,2.044,584.93,584.46,0.2859751]
[1741508218988,2.044,584.93,584.47,0.2859751]
[1741508219494,2.044,584.93,584.48,0.2859751]
[1741508219688,2.044,584.93,584.46,0.2859751]
[1741508219878,2.044,584.93,584.47,0.2859751]
[1741508220084,2.044,584.93,584.46,0.2859751]
[1741508220282,2.044,584.93,584.47,0.2859751]
[1741508220488,2.044,584.93,584.46,0.2859751]
[1741508220688,2.044,584.93,584.47,0.2859751]
[1741508220989,2.044,584.93,584.48,0.2859751]
[1741508221186,2.044,584.93,584.46,0.2859751]
[1741508221392,2.044,584.93,584.45,0.913]
[1741508221686,2.044,584.93,584.46,0.28597762]
[1741508222486,2.044,584.93,584.45,0.913]
[1741508222688,2.044,584.93,584.46,0.28597565]
[1741508224683,2.044,584.93,584.46,0.62817186]
[1741508224888,2.044,584.93,584.46,0.34219621]
[1741508226288,0.709,584.93,584.46,0.34219621]
[1741508229085,1.2775675,585.76,584.46,0.34219621]
[1741508229283,0.899,584.94,584.46,0.34219621]
[1741508229486,1.571,584.94,584.46,0.34219621]
[1741508232386,2.374,584.94,584.46,0.34219621]
[1741508233491,2.374,584.94,584.47,0.28596551]
[1741508235589,2.374,584.94,584.46,0.34219621]
[1741508241096,2.374,584.94,584.47,0.28599913]
[1741508242396,1.702,584.94,584.47,0.28599913]
[1741508246296,1.702,584.94,584.48,0.3421845]
[1741508246499,1.702,584.94,584.49,0.28599913]
[1741508247598,1.702,584.94,584.5,0.28595877]
[1741508247800,1.702,584.94,584.49,0.28595877]
[1741508248101,1.702,584.94,584.5,0.28595877]
[1741508248300,1.702,584.94,584.49,0.28595877]
[1741508255306,1.702,584.94,584.49,0.62813742]
[1741508255606,1.702,584.94,584.5,0.28595877]
[1741508257313,0.899,584.94,584.5,0.28595877]
[1741508258416,1.2775675,585.56,584.5,0.28595877]
[1741508258713,0.31415022,585.55,584.5,0.28595877]
[1741508259209,0.31415022,585.54,584.5,0.28595877]
[1741508260014,0.29748929,585.55,584.49,0.34217865]
[1741508260210,0.31415053,585.54,584.5,0.28595793]
[1741508260408,0.802,585.53,584.5,0.28595793]
[1741508260612,0.31415053,585.52,584.5,0.28595793]
[1741508260813,0.98615053,585.52,584.5,0.28595793]
[1741508261014,0.31415053,585.51,584.5,0.28595793]
[1741508261517,0.759,585.5,584.5,0.28595793]
[1741508261814,0.31415053,585.49,584.5,0.28595793]
[1741508262217,0.61164745,585.49,584.5,0.28595793]
[1741508262414,0.31415053,585.48,584.5,0.28595793]
[1741508264117,0.759,585.5,584.51,0.34216694]
[1741508264313,0.759,585.5,584.51,0.99616694]
[1741508264915,0.29748166,585.49,584.51,0.99616694]
[1741508265116,0.29748166,585.49,584.52,0.34216108]
[1741508265620,0.29748166,585.49,584.53,0.28589701]
[1741508265812,0.29748166,585.49,584.54,0.34214938]
[1741508266327,0.29748166,585.49,584.55,0.28589299]
[1741508266515,0.29748166,585.49,584.55,0.34214352]
[1741508266919,0.759,585.5,584.55,0.34214352]
[1741508267219,0.29747912,585.48,584.55,0.34214352]
[1741508267721,0.29747912,585.48,584.56,0.28590741]
[1741508269921,0.759,585.5,584.56,0.28590741]
[1741508270115,0.29747404,585.47,584.56,0.28590741]
[1741508272824,0.29747404,585.47,584.57,0.28588317]
[1741508273024,0.759,585.5,584.58,0.34212597]
[1741508273219,0.759,585.5,584.58,0.62800914]
[1741508273417,0.759,585.5,584.59,0.89388317]
[1741508273620,0.672,585.52,584.6,0.28588317]
[1741508273825,0.31407625,585.51,584.6,0.28588317]
[1741508274219,0.29745624,585.51,584.6,0.62799743]
[1741508274419,0.29745624,585.51,584.61,0.28588317]
[1741508274622,0.29745624,585.51,584.61,0.62799158]
[1741508274824,0.29745624,585.51,584.62,0.28588317]
[1741508275927,0.672,585.52,584.62,0.28588317]
[1741508276727,0.914,585.51,584.62,0.28588317]
[1741508277132,0.29744988,585.5,584.62,0.28588317]
[1741508277536,0.29744988,585.5,584.63,0.34209671]
[1741508277835,0.29744988,585.5,584.64,0.28588317]
[1741508278034,0.29744988,585.5,584.63,0.34209671]
[1741508278234,0.29744988,585.5,584.64,0.28585061]
[1741508278430,0.29744988,585.5,584.65,0.342085]
[1741508278631,0.29744988,585.5,584.66,0.28585061]
[1741508278937,0.29744988,585.5,584.67,0.3420733]
[1741508279137,0.29744988,585.5,584.68,0.28585061]
[1741508279435,0.29744988,585.5,584.69,0.3420616]
[1741508279635,0.29744988,585.5,584.7,0.28585061]
[1741508279830,0.29744988,585.5,584.71,0.3420499]
[1741508280030,0.29744988,585.5,584.72,0.28585061]
[1741508280236,0.29744988,585.5,584.72,0.62789466]
[1741508280436,0.29744988,585.5,584.72,0.34204405]
[1741508280838,0.29744988,585.5,584.73,0.28584029]
[1741508281232,0.672,585.49,584.73,0.28584029]
[1741508281634,0.644,585.48,584.73,0.28584029]
[1741508286235,0.297427,585.47,584.73,0.28584029]
[1741508286436,0.297427,585.47,584.72,0.34204405]
[1741508286634,0.297427,585.47,584.73,0.28584224]
[1741508288044,0.644,585.48,584.73,0.28584224]
[1741508288542,0.644,585.48,584.74,0.28583457]
[1741508288741,0.644,585.48,584.75,0.28583457]
[1741508288942,0.644,585.48,584.73,0.28583457]
[1741508289142,0.297427,585.47,584.74,0.28583457]
[1741508289338,0.297427,585.47,584.73,0.28583457]
[1741508291042,0.644,585.48,584.73,0.28583457]
[1741508291443,0.644,585.48,584.72,0.34204405]
[1741508292240,0.644,585.48,584.73,0.28582683]
[1741508294359,0.644,585.48,584.74,0.914]
[1741508294745,0.644,585.48,584.75,0.28582683]
[1741508294951,0.644,585.48,584.74,0.914]
[1741508295250,0.644,585.48,584.75,0.28585804]
[1741508295449,0.672,585.47,584.75,0.28585804]
[1741508295749,0.672,585.47,584.74,0.914]
[1741508295951,0.746,585.46,584.74,0.914]
[1741508298153,0.29745497,585.45,584.74,0.914]
[1741508300051,0.746,585.46,584.74,0.914]
[1741508300251,0.29745497,585.44,584.74,0.914]
[1741508302946,0.746,585.46,584.74,0.914]
[1741508303854,0.746,585.46,584.75,0.66]
[1741508304248,0.29745497,585.45,584.75,0.66]
[1741508305148,0.31411444,585.44,584.75,0.66]
[1741508305355,0.29745497,585.45,584.75,0.66]
[1741508305949,1.23445497,585.45,584.75,0.66]
[1741508308955,0.937,585.45,584.75,0.66]
[1741508309658,1.609,585.45,584.75,0.66]
[1741508310156,0.29745751,585.44,584.75,0.66]
[1741508311958,1.609,585.45,584.75,0.66]
[1741508313155,0.29742954,585.44,584.75,0.66]
[1741508313557,0.29742954,585.44,584.76,0.857]
[1741508314956,1.609,585.45,584.76,0.857]
[1741508315652,0.29742827,585.44,584.76,0.857]
[1741508316651,0.29742827,585.44,584.77,0.654]
[1741508317959,1.609,585.45,584.77,0.654]
[1741508321161,1.609,585.45,584.77,1.239]
[1741508324263,2.499,585.45,584.77,1.239]
[1741508325665,2.499,585.45,584.78,0.28580874]
[1741508326665,2.499,585.45,584.79,0.28580585]
[1741508326864,2.499,585.45,584.8,0.28580585]
[1741508327160,2.499,585.45,584.77,1.239]
[1741508327363,2.499,585.45,584.78,0.28580214]
[1741508331666,2.499,585.45,584.78,1.04380214]
[1741508332168,2.499,585.45,584.79,0.28580214]
[1741508332966,2.499,585.45,584.79,0.94180214]
[1741508333166,2.499,585.45,584.8,0.28580214]
[1741508333661,2.499,585.45,584.81,0.28579639]
[1741508333866,2.499,585.45,584.8,0.28579639]
[1741508334065,2.499,585.45,584.81,0.28579639]
[1741508334261,2.499,585.45,584.8,0.28579639]
[1741508334467,2.499,585.45,584.81,0.28579639]
[1741508334670,2.499,585.45,584.8,0.28579639]
[1741508334868,2.499,585.45,584.81,0.28579639]
[1741508335069,2.499,585.45,584.82,0.28579639]
[1741508335265,2.499,585.45,584.79,0.656]
[1741508335466,2.499,585.45,584.8,0.28580221]
[1741508336070,2.499,585.45,584.8,1.07080221]
[1741508336266,2.499,585.45,584.81,0.28580221]
[1741508337272,2.499,585.45,584.82,0.28578359]
[1741508337572,2.499,585.45,584.83,0.28578359]
[1741508337773,2.499,585.45,584.81,0.28578359]
[1741508337975,2.499,585.45,584.82,0.28578359]
[1741508338168,2.499,585.45,584.83,0.28578359]
[1741508338366,2.499,585.45,584.84,0.28578359]
[1741508338568,2.499,585.45,584.81,0.28578359]
[1741508338767,2.499,585.45,584.82,0.28578359]
[1741508338970,2.499,585.45,584.81,0.28578359]
[1741508339170,2.499,585.45,584.82,0.28578359]
[1741508339371,2.499,585.45,584.81,0.90078359]
[1741508339574,2.499,585.45,584.82,0.28578359]
[1741508342073,2.499,585.45,584.81,0.615]
[1741508342273,2.499,585.45,584.82,0.28573844]
[1741508343076,2.499,585.45,584.83,0.34197972]
[1741508343377,2.499,585.45,584.84,0.28573844]
[1741508343774,2.499,585.45,584.83,0.34197972]
[1741508343977,2.499,585.45,584.84,0.28573777]
[1741508347274,2.499,585.45,584.83,0.34197972]
[1741508347480,2.499,585.45,584.84,0.2857572]
[1741508349182,2.499,585.45,584.83,0.34197972]
[1741508349478,2.499,585.45,584.84,0.285755]
[1741508352883,2.499,585.45,584.85,0.28575469]
[1741508353185,2.499,585.45,584.86,0.28575469]
[1741508353581,2.499,585.45,584.85,0.586]
[1741508361289,2.499,585.45,584.86,0.84]
[1741508362693,2.499,585.45,584.87,0.821]
[1741508363694,2.499,585.45,584.88,0.28577819]
[1741508364890,2.499,585.45,584.89,0.769]
[1741508365697,2.499,585.45,584.9,0.28577652]
[1741508365999,2.499,585.45,584.89,0.769]
[1741508367394,2.499,585.45,584.9,0.28578011]
[1741508368699,2.499,585.45,584.89,0.769]
[1741508372299,2.499,585.45,584.9,0.28577588]
[1741508372500,2.499,585.45,584.89,0.769]
[1741508375898,2.499,585.45,584.9,0.28576656]
[1741508376403,2.499,585.45,584.91,0.28575747]
[1741508376604,2.499,585.45,584.89,0.769]
[1741508376605,2.499,585.45,584.9,0.28575747]
[1741508376804,2.499,585.45,584.89,0.769]
[1741508377003,2.499,585.45,584.9,0.28575563]
[1741508379702,2.499,585.45,584.89,0.769]
[1741508379919,2.499,585.45,584.9,0.28576349]
[1741508381810,2.499,585.45,584.91,0.28576506]
[1741508382008,2.499,585.45,584.9,0.28576506]
[1741508382208,2.499,585.45,584.91,0.28576506]
[1741508382408,2.499,585.45,584.9,0.28576506]
[1741508382704,2.499,585.45,584.91,0.28576506]
[1741508382908,2.499,585.45,584.9,0.28576506]
[1741508383108,2.499,585.45,584.91,0.28576506]
[1741508383506,2.499,585.45,584.92,0.28576506]
[1741508383703,2.499,585.45,584.9,0.28576506]
[1741508385111,2.499,585.45,584.89,0.769]
[1741508385310,2.499,585.45,584.9,0.28576593]
[1741508387010,2.499,585.45,584.89,0.769]
[1741508387210,2.499,585.45,584.9,0.28576679]
[1741508388313,2.499,585.45,584.9,0.85476679]
[1741508388512,2.499,585.45,584.91,0.28576679]
[1741508388909,2.499,585.45,584.92,0.28576659]
[1741508389115,2.499,585.45,584.91,0.28576659]
[1741508389320,2.499,585.45,584.92,0.28576659]
[1741508389612,2.499,585.45,584.93,0.28576659]
[1741508389813,2.499,585.45,584.94,0.28576659]
[1741508390112,2.499,585.45,584.95,0.28576659]
[1741508390313,2.499,585.45,584.9,0.569]
[1741508390808,2.499,585.45,584.91,0.28577664]
[1741508392414,2.499,585.45,584.9,0.569]
[1741508392711,2.499,585.45,584.91,0.28577952]
[1741508393308,2.499,585.45,584.91,1.11577952]
[1741508393507,2.499,585.45,584.92,0.28577952]
[1741508395915,2.499,585.45,584.91,0.83]
[1741508396116,2.499,585.45,584.93,0.28578031]
[1741508396317,2.499,585.45,584.94,0.28578031]
[1741508396513,2.499,585.45,584.92,0.28578995]
[1741508411724,2.499,585.45,584.93,0.2857536]
[1741508411926,2.499,585.45,584.92,0.2857536]
[1741508412122,2.499,585.45,584.93,0.2857536]
[1741508412323,2.499,585.45,584.91,0.83]
[1741508412522,2.499,585.45,584.92,0.28574992]
[1741508413822,2.499,585.45,584.92,1.11574992]
[1741508414021,2.499,585.45,584.93,0.28574992]
[1741508415425,2.499,585.45,584.93,0.914]
[1741508415626,2.499,585.45,584.94,0.28570728]
[1741508421529,2.499,585.45,584.95,1.41]
[1741508421726,2.499,585.45,584.96,0.28570728]
[1741508425732,2.499,585.45,584.95,1.41]
[1741508434935,2.499,585.45,584.96,0.28559613]
[1741508435431,2.499,585.45,584.95,1.41]
[1741508435634,2.499,585.45,584.96,0.28559992]
[1741508438738,2.499,585.45,584.97,0.83]
[1741508438937,2.499,585.45,584.98,0.28559992]
[1741508439137,1.562,585.45,584.98,0.28559992]
[1741508439335,0.29734314,585.67,584.98,0.28559992]
[1741508439937,0.29734314,585.67,584.97,0.83]
[1741508441136,1.2775675,586.04,584.97,0.83]
[1741508441439,0.29726821,585.67,584.97,0.83]
[1741508441638,1.2775675,586.04,584.98,0.928]
[1741508442333,1.495,586.03,584.98,0.928]
[1741508442539,2.29,586.03,584.98,0.928]
[1741508442938,0.29726821,586.02,584.98,0.928]
[1741508443838,0.29726821,586.02,584.99,0.622]
[1741508444031,2.29,586.03,584.99,0.622]
[1741508445337,0.29726694,586.02,584.99,0.622]
[1741508447240,2.29,586.03,584.99,0.622]
[1741508447440,0.29724663,586.01,584.99,0.622]
[1741508450145,2.29,586.03,584.99,0.622]
[1741508450540,0.29724536,586.0,584.99,0.622]
[1741508453145,2.29,586.03,584.99,0.622]
[1741508454444,0.29724663,586.02,584.99,0.622]
[1741508456147,2.29,586.03,584.99,0.622]
[1741508456350,0.29724663,586.01,584.99,0.622]
[1741508457048,0.29724663,586.01,585.0,1.20933531]
[1741508457349,0.29724663,586.01,585.01,0.28533531]
[1741508459150,1.619,586.03,585.01,0.28533531]
[1741508460250,0.29724536,586.02,585.01,0.28533531]
[1741508460647,0.29724536,586.02,585.0,0.924]
[1741508460850,0.29724536,586.02,585.01,0.28533379]
[1741508461453,0.31382717,586.01,585.01,0.28533379]
[1741508461651,0.98482717,586.01,585.01,0.28533379]
[1741508461853,0.671,586.01,585.01,0.28533379]
[1741508463055,0.29724028,586.0,585.01,0.28533379]
[1741508465058,0.671,586.01,585.01,0.28533379]
[1741508465860,0.29724028,586.0,585.01,0.28533379]
[1741508466057,0.29724028,586.0,585.02,0.899]
[1741508466260,0.29724028,586.0,585.03,0.28533379]
[1741508466960,0.29724028,586.0,585.02,0.899]
[1741508467157,0.29724028,586.0,585.03,0.28526119]
[1741508468163,0.671,586.01,585.03,0.28526119]
[1741508468358,0.29723774,585.99,585.03,0.28526119]
[1741508470568,0.826,585.98,585.03,0.28526119]
[1741508470863,0.826,585.98,585.04,0.28484843]
[1741508471064,0.826,585.98,585.03,0.28484843]
[1741508471259,0.826,585.98,585.04,0.28484843]
[1741508471663,0.762,585.97,585.05,0.28484843]
[1741508471865,0.762,585.97,585.03,0.28484843]
[1741508472165,0.762,585.97,585.04,0.28484843]
[1741508472364,0.29725551,585.96,585.04,0.28484843]
[1741508472565,0.29725551,585.96,585.03,0.28484843]
[1741508472761,0.29725551,585.96,585.04,0.28484843]
[1741508473066,0.29725551,585.96,585.02,0.899]
[1741508473067,0.29725551,585.96,585.03,0.95384843]
[1741508473361,0.29725551,585.96,585.04,0.28484843]
[1741508474162,0.762,585.97,585.04,0.28484843]
[1741508474360,0.29725424,585.95,585.04,0.28484843]
[1741508476165,0.29725424,585.95,585.05,0.28502263]
[1741508476465,0.29725424,585.95,585.04,0.28502263]
[1741508476662,0.29725424,585.95,585.05,0.28502263]
[1741508476966,0.29725424,585.95,585.06,0.28502263]
[1741508477165,0.762,585.97,585.04,0.28502263]
[1741508477366,0.29725424,585.94,585.05,0.28502263]
[1741508477565,0.29725424,585.94,585.06,0.28502263]
[1741508477765,0.29725424,585.94,585.03,0.669]
[1741508477766,0.29725424,585.94,585.04,0.28502263]
[1741508477967,0.29725424,585.94,585.05,0.28502263]
[1741508478269,0.29725424,585.94,585.06,0.28502263]
[1741508478567,0.29725424,585.94,585.04,0.28502263]
[1741508478865,0.29725424,585.94,585.05,0.28501463]
[1741508479069,0.29725424,585.94,585.04,0.28501463]
[1741508479269,0.29725424,585.94,585.05,1.12900823]
[1741508479569,0.29725424,585.94,585.06,0.28500823]
[1741508480164,0.762,585.97,585.06,0.28500823]
[1741508480369,0.2972517,585.93,585.06,0.28500823]
[1741508482566,0.2972517,585.93,585.05,0.844]
[1741508483067,0.762,585.97,585.05,0.844]
[1741508483567,0.29726186,585.92,585.05,0.844]
[1741508485963,0.762,585.97,585.05,0.844]
[1741508486270,0.29726186,585.91,585.05,0.844]
[1741508487768,0.65,585.9,585.05,0.844]
[1741508488166,0.65,585.9,585.05,1.552]
[1741508489370,0.29728598,585.89,585.05,1.552]
[1741508490774,0.31392173,585.88,585.05,1.552]
[1741508491876,0.943,585.87,585.05,1.552]
[1741508492070,0.31392173,585.86,585.05,1.552]
[1741508492766,0.943,585.87,585.05,1.552]
[1741508493471,0.29730503,585.86,585.05,1.552]
[1741508495169,0.943,585.87,585.05,1.552]
[1741508496267,0.2972771,585.86,585.05,1.552]
[1741508497971,0.2972771,585.86,585.06,0.28495875]
[1741508499369,0.2972771,585.86,585.06,0.666]
[1741508499570,0.2972771,585.86,585.07,0.28495875]
[1741508500176,0.2972771,585.86,585.06,0.666]
[1741508500476,0.2972771,585.86,585.07,0.2849551]
[1741508501076,0.943,585.87,585.07,0.2849551]
[1741508501274,0.29727329,585.85,585.07,0.2849551]
[1741508501475,0.29727329,585.85,585.08,0.821]
[1741508502274,0.29727329,585.85,585.09,0.689]
[1741508502973,0.29727329,585.85,585.1,0.764]
[1741508503777,0.64,585.84,585.1,0.764]
[1741508504376,0.2972771,585.83,585.11,0.28498268]
[1741508504575,0.2972771,585.83,585.1,0.764]
[1741508505577,0.2972771,585.83,585.11,0.28500875]
[1741508505873,0.2972771,585.83,585.1,0.764]
[1741508507078,0.64,585.84,585.1,0.764]
[1741508507479,0.2972771,585.82,585.1,0.764]
[1741508507778,0.2972771,585.82,585.11,0.28499904]
[1741508507979,0.2972771,585.82,585.1,0.764]
[1741508509379,0.2972771,585.82,585.11,0.28498743]
[1741508510179,0.2972771,585.82,585.1,0.764]
[1741508510379,0.2972771,585.82,585.11,0.28499884]
[1741508510984,0.9682771,585.82,585.11,0.28499884]
[1741508511181,1.5702771,585.82,585.11,0.28499884]
[1741508511383,1.5702771,585.82,585.1,0.764]
[1741508513083,1.273,585.82,585.1,0.764]
[1741508513385,0.29728979,585.81,585.1,0.764]
[1741508516083,1.273,585.82,585.1,0.764]
[1741508516285,0.29728979,585.8,585.1,0.764]
[1741508518085,0.641,585.79,585.1,0.764]
[1741508518487,0.641,585.79,585.11,0.8]
[1741508519388,0.29728217,585.78,585.11,0.8]
[1741508521491,0.29728217,585.78,585.12,0.28511021]
[1741508522189,0.641,585.79,585.12,0.28511021]
[1741508522383,0.29728217,585.77,585.12,0.28511021]
[1741508524090,0.29728217,585.77,585.13,0.828]
[1741508525088,0.641,585.79,585.13,0.828]
[1741508525286,0.29727964,585.76,585.13,0.828]
[1741508528097,0.641,585.79,585.13,0.828]
[1741508528393,0.29727202,585.75,585.13,0.828]
[1741508532898,0.29727202,585.75,585.14,0.672]
[1741508533599,0.29727202,585.75,585.15,0.966]
[1741508537101,0.641,585.79,585.15,0.966]
[1741508538301,0.29728725,585.78,585.15,0.966]
[1741508540102,0.641,585.79,585.15,0.966]
[1741508540402,0.671,585.77,585.15,0.966]
[1741508541299,0.29728979,585.76,585.15,0.966]
[1741508542298,0.893,585.75,585.15,0.966]
[1741508544306,0.29729233,585.74,585.15,0.966]
[1741508546110,0.893,585.75,585.15,0.966]
[1741508547409,0.29729233,585.74,585.15,0.966]
[1741508548308,0.29729233,585.74,585.15,1.876]
[1741508549106,0.893,585.75,585.15,2.714]
[1741508549808,0.893,585.75,585.15,3.656]
[1741508550407,0.29729233,585.74,585.15,3.656]
[1741508551306,0.765,585.73,585.15,3.656]
[1741508553309,0.29729487,585.72,585.15,3.656]
[1741508555112,0.765,585.73,585.15,3.656]
[1741508558512,0.671,585.72,585.15,3.656]
[1741508571533,0.903,585.71,585.15,3.656]
[1741508571834,1.73,585.71,585.15,3.656]
[1741508576531,0.29728471,585.7,585.15,3.656]
[1741508579238,1.73,585.71,585.15,3.656]
[1741508579443,0.29728471,585.69,585.15,3.656]
[1741508582345,1.73,585.71,585.15,3.656]
[1741508582544,0.29728471,585.68,585.15,3.656]
[1741508585145,0.827,585.71,585.15,3.656]
[1741508585448,0.29728471,585.68,585.15,3.656]
[1741508587845,0.611,585.67,585.15,3.656]
[1741508588847,0.672,585.66,585.15,3.656]
[1741508589045,1.26,585.66,585.15,3.656]
[1741508595353,0.29731519,585.65,585.15,3.656]
[1741508597254,1.26,585.66,585.15,3.656]
[1741508598255,0.2973317,585.65,585.15,3.656]
[1741508600155,1.26,585.66,585.15,3.656]
[1741508601458,0.2973317,585.65,585.15,3.656]
[1741508603266,1.26,585.66,585.15,3.656]
[1741508603456,0.2973317,585.64,585.15,3.656]
[1741508606161,0.672,585.66,585.15,3.656]
[1741508607361,0.2973317,585.65,585.15,3.656]
[1741508609362,1.0383317,585.64,585.15,3.656]
[1741508612067,0.956,585.63,585.15,3.656]
[1741508612365,1.25333424,585.63,585.15,3.656]
[1741508614067,1.92533424,585.63,585.15,3.656]
[1741508615166,1.628,585.63,585.15,3.656]
[1741508615363,0.29733551,585.62,585.15,3.656]
[1741508615769,0.29733551,585.62,584.2,1.2710297]
[1741508616468,0.29733551,585.62,584.71,0.29745624]
[1741508617062,0.29733551,585.62,584.84,0.28544323]
[1741508617265,0.29733551,585.62,584.71,0.29745624]
[1741508618166,1.628,585.63,584.2,1.2710297]
[1741508618966,1.628,585.63,584.84,3.189]
[1741508619371,0.29746641,585.62,584.84,3.189]
[1741508621170,1.628,585.63,584.84,3.189]
[1741508622474,0.29738506,585.62,584.84,3.189]
[1741508624175,1.628,585.63,584.84,3.189]
[1741508625472,0.29739269,585.62,584.84,3.189]
[1741508627277,0.31403042,585.61,584.84,3.189]
[1741508627470,0.31403042,585.62,584.84,3.189]
[1741508627672,0.31403042,585.61,584.84,3.189]
[1741508627873,0.31403042,585.62,584.85,0.28556174]
[1741508628074,0.31403042,585.61,584.85,0.28556174]
[1741508628282,0.29739269,585.61,584.85,0.28556174]
[1741508628478,1.09103042,585.6,584.85,0.28556174]
[1741508628878,0.777,585.6,584.85,0.28556174]
[1741508629481,0.31402806,585.59,584.84,3.189]
[1741508629676,0.777,585.6,584.85,0.28556049]
[1741508630375,0.777,585.6,584.84,3.189]
[1741508630580,0.777,585.6,584.85,0.28555621]
[1741508630775,0.31403254,585.59,584.84,3.189]
[1741508631278,0.61145752,585.58,584.84,3.189]
[1741508631475,0.3140534,585.57,584.84,3.189]
[1741508632884,0.29740412,585.58,584.84,3.189]
[1741508633078,0.314052,585.57,584.84,3.189]
[1741508633579,0.726,585.58,584.84,3.189]
[1741508633983,0.31404741,585.57,584.84,2.55]
[1741508634377,0.61145408,585.57,584.84,2.55]
[1741508634579,0.29740667,585.57,584.84,2.55]
[1741508636183,0.726,585.58,584.84,2.55]
[1741508637181,0.726,585.58,584.85,0.967]
[1741508637379,0.29740667,585.57,584.85,0.967]
[1741508639087,0.726,585.58,584.85,0.967]
[1741508639288,0.672,585.57,584.85,0.967]
[1741508640286,0.29740667,585.56,584.85,0.967]
[1741508640991,0.29740667,585.56,584.86,0.934]
[1741508642286,0.672,585.57,584.86,0.934]
[1741508643391,0.29743336,585.56,584.86,0.934]
[1741508645289,0.672,585.57,584.86,0.934]
[1741508646088,0.29743336,585.56,584.86,0.934]
[1741508646792,0.953,585.55,584.86,0.934]
[1741508651499,0.29744861,585.54,584.86,0.934]
[1741508652092,0.29744861,585.54,584.87,0.735]
[1741508654096,0.953,585.55,584.87,0.735]
[1741508654301,0.31412587,585.54,584.87,0.735]
[1741508654901,0.953,585.55,584.87,0.735]
[1741508655502,0.29744734,585.54,584.88,0.663]
[1741508657307,0.953,585.55,584.88,0.663]
[1741508657505,0.94444607,585.53,584.88,0.663]
[1741508658104,0.31411842,585.52,584.88,0.663]
[1741508662506,0.94444607,585.53,584.88,0.663]
[1741508663316,0.647,585.53,584.88,0.663]
[1741508663514,0.29744098,585.52,584.88,0.663]
[1741508665114,0.31409948,585.51,584.88,0.663]
[1741508666113,0.31410298,585.5,584.88,0.663]
[1741508666428,0.29743717,585.5,584.88,0.663]
[1741508667719,0.31410618,585.49,584.88,0.663]
[1741508667919,0.29743717,585.5,584.88,0.663]
[1741508668120,0.31410808,585.49,584.88,0.663]
[1741508669614,0.31410808,585.52,584.88,0.663]
[1741508669820,0.31410552,585.51,584.88,0.663]
[1741508670120,0.31410552,585.5,584.88,0.663]
[1741508670416,0.31410552,585.49,584.88,0.663]
[1741508672419,0.31410552,585.52,584.88,0.663]
[1741508672624,0.29743971,585.48,584.88,0.663]
[1741508672822,0.98610552,585.47,584.88,0.663]
[1741508673018,0.31410552,585.46,584.88,0.663]
[1741508673221,0.672,585.47,584.88,0.663]
[1741508673523,0.31410914,585.46,584.88,0.663]
[1741508674025,0.931,585.45,584.88,0.663]
[1741508676423,0.29744607,585.44,584.88,0.663]
[1741508676924,0.97644607,585.44,584.88,0.663]
[1741508677322,0.97644607,585.44,584.89,0.902]